bitfinex/quotes_BTCUSD_20250308
["timestamp","ask_amount","ask_price","bid_price","bid_amount"]
[1741449754316,0.00100054,86674.0,86673.0,1.54969785]
[1741449755000,0.00100054,86674.0,86673.0,1.54506985]
[1741449755549,0.00100054,86674.0,86673.0,1.52306985]
[1741449756025,0.00100054,86674.0,86673.0,1.54506985]
[1741449756789,5.4e-07,86674.0,86673.0,1.54506985]
[1741449759788,5.4e-07,86674.0,86673.0,1.54540965]
[1741449760116,0.00017044,86674.0,86673.0,1.54540965]
[1741449761330,0.230643,86714.0,86709.0,0.011532]
[1741449761558,0.0335041,86715.0,86710.0,0.11172]
[1741449762456,0.230649,86712.0,86710.0,0.11172]
[1741449762718,0.011532,86713.0,86710.0,0.11172]
[1741449763392,0.24218,86712.0,86710.0,0.11172]
[1741449763588,0.001,86714.0,86710.0,0.11172]
[1741449763788,0.0335041,86715.0,86710.0,0.11172]
[1741449764135,0.1108041,86715.0,86710.0,0.11172]
[1741449764337,0.0992721,86715.0,86712.0,0.011532]
[1741449764688,0.0992721,86715.0,86712.0,0.242178]
[1741449764877,0.001,86714.0,86712.0,0.242178]
[1741449765602,0.001,86714.0,86713.0,0.011532]
[1741449765926,0.0992721,86715.0,86713.0,0.011532]
[1741449766143,0.0992721,86715.0,86710.0,0.342373]
[1741449766348,0.0992721,86715.0,86710.0,0.353905]
[1741449766561,0.242159,86720.0,86715.0,0.011532]
[1741449766791,0.0773,86723.0,86718.0,0.011531]
[1741449766993,0.08883,86723.0,86718.0,0.011531]
[1741449767414,0.11033368,86723.0,86718.0,0.010531]
[1741449767662,0.02150368,86723.0,86718.0,0.010531]
[1741449768057,0.01153,86724.0,86718.0,0.010531]
[1741449768417,0.01153,86724.0,86718.0,0.009531]
[1741449768841,0.01153,86724.0,86715.0,0.242169]
[1741449768842,0.011531,86720.0,86715.0,0.242172]
[1741449769013,0.26650427,86723.0,86716.0,0.011531]
[1741449769215,0.011531,86722.0,86716.0,0.011531]
[1741449769621,0.26450427,86723.0,86717.0,0.242166]
[1741449770250,0.03388527,86723.0,86717.0,0.011531]
[1741449770667,0.011531,86721.0,86716.0,0.011531]
[1741449772129,0.011531,86719.0,86714.0,0.011532]
[1741449772781,0.242158,86720.0,86715.0,0.242172]
[1741449773084,0.230639,86716.0,86712.0,0.0003396]
[1741449773219,0.011532,86713.0,86712.0,0.0003396]
[1741449773715,0.24217,86716.0,86712.0,0.0003396]
[1741449773928,0.011531,86716.0,86712.0,0.0003396]
[1741449775484,0.011531,86716.0,86713.0,0.11168]
[1741449777471,0.242169,86716.0,86713.0,0.11168]
[1741449777647,0.011532,86715.0,86713.0,0.11168]
[1741449779322,0.242169,86716.0,86713.0,0.11168]
[1741449779523,0.011531,86716.0,86713.0,0.11168]
[1741449780989,0.230632,86718.0,86713.0,0.342325]
[1741449781207,0.242163,86718.0,86713.0,0.11168]
[1741449781569,0.24254855,86718.0,86713.0,0.11168]
[1741449782212,0.23101755,86718.0,86714.0,0.011532]
[1741449782631,0.23101755,86718.0,86713.0,0.11168]
[1741449783037,0.24254855,86718.0,86713.0,0.11168]
[1741449783234,0.00038555,86718.0,86714.0,0.230643]
[1741449783433,0.23101855,86718.0,86713.0,0.123212]
[1741449784244,0.24254955,86718.0,86713.0,0.123212]
[1741449784512,0.23064,86715.0,86713.0,0.11168]
[1741449784704,0.011531,86716.0,86713.0,0.11168]
[1741449785440,0.011531,86716.0,86713.0,0.1120196]
[1741449785953,0.242171,86716.0,86713.0,0.1120196]
[1741449786530,0.01291655,86718.0,86713.0,0.1120196]
[1741449786734,0.00138555,86718.0,86713.0,0.3541946]
[1741449786899,0.00138555,86718.0,86714.0,0.011532]
[1741449787095,0.00138555,86718.0,86715.0,0.23064]
[1741449787300,0.00138555,86718.0,86714.0,0.011532]
[1741449788590,0.00038555,86718.0,86714.0,0.011532]
[1741449789499,0.01191655,86718.0,86713.0,0.3541946]
[1741449790063,0.00038555,86718.0,86714.0,0.011532]
[1741449791252,0.00138555,86718.0,86714.0,0.011532]
[1741449791871,0.00138555,86718.0,86715.0,0.23064]
[1741449792275,0.00138555,86718.0,86714.0,0.011532]
[1741449793160,0.06705189,86719.0,86714.0,0.011532]
[1741449793360,0.06716746,86719.0,86714.0,0.011532]
[1741449793822,0.00011557,86719.0,86715.0,0.242172]
[1741449795097,0.00011557,86719.0,86714.0,0.011532]
[1741449795280,0.23074557,86719.0,86714.0,0.011532]
[1741449795528,0.00011557,86719.0,86715.0,0.242172]
[1741449795935,0.001,86718.0,86714.0,0.011532]
[1741449796821,0.001,86718.0,86713.0,0.1120196]
[1741449796822,0.011532,86714.0,86713.0,0.1120196]
[1741449797025,0.230637,86716.0,86713.0,0.1120196]
[1741449797226,0.011531,86717.0,86713.0,0.1120196]
[1741449797430,0.001,86718.0,86714.0,0.011532]
[1741449797666,0.001,86718.0,86715.0,0.23064]
[1741449798467,0.0001698,86718.0,86715.0,0.242172]
[1741449799112,0.0001698,86718.0,86714.0,0.011532]
[1741449799350,0.0117008,86718.0,86713.0,0.1120196]
[1741449800258,0.0127008,86718.0,86713.0,0.1120196]
[1741449800680,0.011531,86716.0,86713.0,0.1120196]
[1741449800878,0.230641,86715.0,86713.0,0.1120196]
[1741449801104,0.011531,86716.0,86713.0,0.1120196]
[1741449803556,0.230635,86717.0,86713.0,0.1120196]
[1741449806466,0.242166,86717.0,86713.0,0.1120196]
[1741449808841,0.242166,86717.0,86714.0,0.11164]
[1741449809264,0.23064,86715.0,86714.0,0.11164]
[1741449809475,0.011532,86715.0,86714.0,0.11164]
[1741449809682,0.011531,86716.0,86714.0,0.11164]
[1741449809832,0.23064,86715.0,86714.0,0.11164]
[1741449810037,0.011531,86716.0,86714.0,0.11164]
[1741449810439,0.23064,86715.0,86714.0,0.11164]
[1741449810649,0.011531,86716.0,86714.0,0.11164]
[1741449810847,0.242166,86717.0,86714.0,0.11164]
[1741449811421,0.230635,86717.0,86714.0,0.11164]
[1741449813760,0.0117008,86718.0,86714.0,0.11164]
[1741449815114,0.0127008,86718.0,86714.0,0.11164]
[1741449816862,0.242166,86717.0,86714.0,0.11164]
[1741449819711,0.242172,86715.0,86714.0,0.11164]
[1741449822766,0.242172,86715.0,86714.0,0.1119796]
[1741449826151,0.242166,86717.0,86714.0,0.1119796]
[1741449826732,0.23064,86715.0,86714.0,0.1119796]
[1741449826906,0.242172,86715.0,86714.0,0.1119796]
[1741449829175,0.011532,86715.0,86714.0,0.1119796]
[1741449831287,0.242167,86717.0,86714.0,0.1119796]
[1741449831479,0.242172,86715.0,86714.0,0.1119796]
[1741449834640,0.2423418,86715.0,86714.0,0.1119796]
[1741449840609,0.21611794,86717.0,86714.0,0.1119796]
[1741449840919,0.242172,86715.0,86714.0,0.1119796]
[1741449841323,0.242172,86715.0,86714.0,0.11707377]
[1741449841462,0.242172,86715.0,86714.0,0.1119796]
[1741449842063,0.011532,86715.0,86714.0,0.1119796]
[1741449847756,0.22781874,86717.0,86714.0,0.1119796]
[1741449848520,0.011531,86716.0,86714.0,0.1119796]
[1741449849103,0.23064,86715.0,86714.0,0.1119796]
[1741449849705,0.011531,86716.0,86714.0,0.1119796]
[1741449850686,0.242171,86716.0,86714.0,0.1119796]
[1741449851651,0.243171,86716.0,86714.0,0.1119796]
[1741449852000,0.001,86716.0,86714.0,0.1119796]
[1741449852142,0.001,86716.0,86715.0,0.0488]
[1741449854228,0.0001698,86717.0,86715.0,0.0488]
[1741449854778,0.001,86716.0,86715.0,0.0488]
[1741449855292,0.0001698,86717.0,86715.0,0.0488]
[1741449855872,0.0011698,86717.0,86715.0,0.0488]
[1741449858332,0.0021698,86717.0,86715.0,0.0488]
[1741449860483,0.0021698,86717.0,86716.0,0.090531]
[1741449860686,0.0021698,86717.0,86716.0,0.079]
[1741449861712,0.0011698,86717.0,86716.0,0.079]
[1741449862091,0.0001698,86717.0,86716.0,0.079]
[1741449862298,0.0011698,86717.0,86716.0,0.079]
[1741449862522,0.0021698,86717.0,86716.0,0.079]
[1741449862720,0.0137008,86717.0,86715.0,0.0488]
[1741449863718,0.242168,86716.0,86715.0,0.0488]
[1741449865629,0.011532,86715.0,86714.0,0.1119796]
[1741449869648,0.012532,86715.0,86714.0,0.1119796]
[1741449870551,0.013532,86715.0,86714.0,0.1119796]
[1741449877790,0.002,86715.0,86714.0,0.1119796]
[1741449877937,0.002,86715.0,86714.0,0.2341796]
[1741449879865,0.002,86715.0,86714.0,0.2457116]
[1741449880446,0.002,86715.0,86714.0,0.2341796]
[1741449882561,0.002,86715.0,86714.0,0.2457116]
[1741449889432,0.002,86715.0,86714.0,0.2341796]
[1741449890267,0.23264,86715.0,86714.0,0.2341796]
[1741449890681,0.002,86715.0,86714.0,0.2341796]
[1741449895011,0.013532,86715.0,86714.0,0.2341796]
[1741449903413,0.002,86715.0,86714.0,0.2341796]
[1741449904247,0.013532,86715.0,86714.0,0.2341796]
[1741449906932,0.013532,86715.0,86714.0,0.1119796]
[1741449909909,0.013532,86715.0,86714.0,0.0003396]
[1741449910531,0.048732,86715.0,86714.0,0.0003396]
[1741449910944,0.047732,86715.0,86714.0,0.0003396]
[1741449911352,0.048732,86715.0,86714.0,0.0003396]
[1741449911555,0.048732,86715.0,86713.0,0.0003396]
[1741449911556,0.242175,86714.0,86713.0,0.0003396]
[1741449913123,0.244175,86714.0,86713.0,0.0003396]
[1741449914673,0.245175,86714.0,86713.0,0.0003396]
[1741449916086,0.545175,86714.0,86712.0,0.0003396]
[1741449916247,0.545175,86714.0,86691.0,0.11156]
[1741449916248,0.242233,86693.0,86691.0,0.11156]
[1741449919364,0.011534,86699.0,86691.0,0.11156]
[1741449919365,0.242193,86708.0,86699.0,0.230683]
[1741449919625,0.009,86714.0,86709.0,0.230656]
[1741449919960,0.230659,86708.0,86707.0,0.11156]
[1741449920165,0.242191,86708.0,86706.0,0.1258]
[1741449920389,0.011534,86700.0,86699.0,0.0775]
[1741449920624,0.011534,86700.0,86699.0,0.18906]
[1741449920983,0.011534,86700.0,86699.0,0.18706]
[1741449921617,0.011533,86702.0,86699.0,0.18706]
[1741449921795,0.22803052,86703.0,86699.0,0.18706]
[1741449922118,0.230677,86702.0,86699.0,0.18706]
[1741449922322,0.011534,86700.0,86699.0,0.18706]
[1741449922724,0.011534,86700.0,86699.0,0.18506]
[1741449924287,0.011534,86700.0,86699.0,0.18606]
[1741449924582,0.011534,86700.0,86699.0,0.18706]
[1741449926831,0.011534,86700.0,86699.0,0.19212355]
[1741449928265,0.011534,86700.0,86699.0,0.00706355]
[1741449929066,0.242214,86700.0,86699.0,0.00706355]
[1741449929241,0.242214,86700.0,86699.0,0.00606355]
[1741449929644,0.243214,86700.0,86699.0,0.00606355]
[1741449930867,0.243214,86700.0,86699.0,0.00506355]
[1741449931081,0.242219,86698.0,86697.0,0.0483]
[1741449931305,0.242219,86698.0,86692.0,0.00040919]
[1741449931306,0.242233,86693.0,86692.0,0.00040919]
[1741449931523,0.542233,86693.0,86692.0,0.00040919]
[1741449932168,0.864716,86693.0,86692.0,0.00040919]
[1741449933125,0.242286,86674.0,86672.0,0.0793]
[1741449933326,0.242286,86674.0,86667.0,0.0769]
[1741449933562,0.242286,86674.0,86662.0,0.0476]
[1741449933563,0.26511102,86674.0,86662.0,0.0476]
[1741449935133,0.242286,86674.0,86662.0,0.0476]
[1741449935630,0.245286,86674.0,86662.0,0.0476]
[1741449936804,0.26234838,86674.0,86662.0,0.0476]
[1741449937425,0.26234838,86674.0,86673.0,0.0013398]
[1741449937841,0.28604023,86674.0,86673.0,0.0013398]
[1741449938040,0.28604023,86674.0,86673.0,0.0003398]
[1741449938460,0.29004023,86674.0,86673.0,0.0003398]
[1741449939255,0.242316,86663.0,86662.0,0.0402798]
[1741449941810,0.242316,86663.0,86662.0,0.06196383]
[1741449946786,0.011538,86666.0,86662.0,0.06196383]
[1741449947420,0.011538,86664.0,86662.0,0.06196383]
[1741449948266,0.230773,86665.0,86662.0,0.06196383]
[1741449948267,0.242311,86665.0,86662.0,0.06196383]
[1741449950358,0.011538,86664.0,86662.0,0.06196383]
[1741449950742,0.230778,86663.0,86662.0,0.06196383]
[1741449952599,0.242316,86663.0,86662.0,0.06196383]
[1741449953408,0.242316,86663.0,86662.0,0.06213383]
[1741449953611,0.242316,86663.0,86662.0,0.02185403]
[1741449954043,0.242316,86663.0,86662.0,0.00017]
[1741449954247,0.542316,86663.0,86662.0,0.00017]
[1741449954449,0.542316,86663.0,86662.0,0.00055555]
[1741449956470,0.545316,86663.0,86662.0,0.00055555]
[1741449956711,0.547316,86663.0,86662.0,0.00055555]
[1741449957680,0.544316,86663.0,86662.0,0.00055555]
[1741449957881,0.542316,86663.0,86662.0,0.00055555]
[1741449958284,0.242331,86658.0,86657.0,0.0001699]
[1741449960388,0.542331,86658.0,86657.0,0.0001699]
[1741449960584,0.934485,86658.0,86657.0,0.0001699]
[1741449960811,0.935485,86658.0,86657.0,0.0001699]
[1741449961456,0.937485,86658.0,86657.0,0.0001699]
[1741449962843,0.242348,86652.0,86648.0,0.0001699]
[1741449965927,0.26579779,86652.0,86648.0,0.0001699]
[1741449968404,0.56579779,86652.0,86648.0,0.0001699]
[1741449969845,0.57430131,86652.0,86648.0,0.0001699]
[1741449970951,0.57124304,86652.0,86648.0,0.0001699]
[1741449973290,0.57224304,86652.0,86648.0,0.0001699]
[1741449973693,0.542356,86649.0,86648.0,0.0001699]
[1741449973902,1.42999,86649.0,86648.0,0.0001699]
[1741449974046,1.417889,86649.0,86648.0,0.0001699]
[1741449977022,1.423889,86649.0,86648.0,0.0011699]
[1741449977276,1.430889,86649.0,86648.0,0.0011699]
[1741449978592,1.430889,86649.0,86648.0,0.00124102]
[1741449979170,1.424889,86649.0,86648.0,0.00024102]
[1741449979365,1.417889,86649.0,86648.0,0.00024102]
[1741449979892,0.542375,86642.0,86641.0,0.001]
[1741449980088,1.555342,86642.0,86641.0,0.00110202]
[1741449980251,1.469982,86642.0,86641.0,0.00110202]
[1741449980451,1.438727,86642.0,86641.0,0.00110202]
[1741449981061,0.653935,86642.0,86641.0,0.00110202]
[1741449981303,1.438171,86642.0,86641.0,0.00110202]
[1741449981604,1.051918,86642.0,86641.0,0.00110202]
[1741449981835,1.028768,86642.0,86641.0,0.00110202]
[1741449983842,0.97291,86642.0,86641.0,0.00110202]
[1741449984353,0.97591,86642.0,86641.0,0.00110202]
[1741449985094,0.67591,86642.0,86641.0,0.00110202]
[1741449987510,0.67591,86642.0,86627.0,0.0003396]
[1741449987511,0.087741,86641.0,86627.0,0.0003396]
[1741449987715,0.242404,86632.0,86627.0,0.0003396]
[1741449987895,1.791633,86632.0,86627.0,0.0003396]
[1741449988309,1.661688,86632.0,86627.0,0.0003396]
[1741449988716,1.233887,86632.0,86627.0,0.0003396]
[1741449988917,1.131271,86632.0,86627.0,0.0003396]
[1741449989064,0.98865,86632.0,86627.0,0.0003396]
[1741449989693,0.98265,86632.0,86627.0,0.0003396]
[1741449989894,0.98865,86632.0,86627.0,0.0003396]
[1741449990365,0.242415,86628.0,86627.0,0.0003396]
[1741449990501,1.163806,86628.0,86627.0,0.0003396]
[1741449990864,1.198553,86628.0,86627.0,0.0003396]
[1741449991847,0.242415,86628.0,86627.0,0.0003396]
[1741449992544,0.357975,86628.0,86627.0,0.0788396]
[1741449994097,0.246415,86628.0,86627.0,0.0788396]
[1741449994584,1.38891595,86628.0,86627.0,0.0003396]
[1741449994783,1.46160395,86628.0,86627.0,0.0003396]
[1741449995246,1.44660895,86628.0,86627.0,0.0003396]
[1741449995444,1.29876495,86628.0,86627.0,0.0003396]
[1741449996064,1.25813895,86628.0,86627.0,0.0003396]
[1741449996476,1.25413895,86628.0,86627.0,0.0003396]
[1741449996673,1.25813895,86628.0,86627.0,0.0003396]
[1741449997039,1.25413895,86628.0,86627.0,0.0003396]
[1741449997614,1.25813895,86628.0,86627.0,0.0003396]
[1741449997931,1.26513895,86628.0,86627.0,0.0003396]
[1741449998339,1.25813895,86628.0,86627.0,0.0003396]
[1741449998746,1.26513895,86628.0,86627.0,0.0003396]
[1741450001059,0.94500395,86628.0,86627.0,0.0003396]
[1741450002956,0.76224495,86628.0,86627.0,0.0003396]
[1741450003168,0.88938395,86628.0,86627.0,0.0003396]
[1741450003702,0.76224495,86628.0,86627.0,0.0003396]
[1741450004064,0.86725695,86628.0,86627.0,0.0003396]
[1741450005766,0.97881695,86628.0,86627.0,0.0003396]
[1741450007115,0.87380495,86628.0,86627.0,0.0003396]
[1741450007322,0.87380495,86628.0,86627.0,0.0765396]
[1741450007732,0.87380495,86628.0,86627.0,0.0003396]
[1741450008714,1.48492595,86628.0,86627.0,0.0003396]
[1741450008947,1.37702595,86628.0,86627.0,0.0003396]
[1741450011606,1.22891595,86628.0,86627.0,0.0003396]
[1741450013569,0.87380495,86628.0,86627.0,0.0003396]
[1741450013792,1.71304995,86628.0,86627.0,0.0003396]
[1741450016134,1.273348,86628.0,86627.0,6e-07]
[1741450016298,0.434103,86628.0,86627.0,6e-07]
[1741450016503,0.67583738,86628.0,86627.0,6e-07]
[1741450018183,0.66883738,86628.0,86627.0,6e-07]
[1741450018850,0.67360422,86628.0,86627.0,6e-07]
[1741450019153,0.66960422,86628.0,86627.0,6e-07]
[1741450020145,0.67460422,86628.0,86627.0,6e-07]
[1741450020334,0.87460422,86628.0,86627.0,6e-07]
[1741450021848,0.86760422,86628.0,86627.0,6e-07]
[1741450022060,0.87460422,86628.0,86627.0,6e-07]
[1741450022888,0.86960422,86628.0,86627.0,6e-07]
[1741450023424,0.87660422,86628.0,86627.0,6e-07]
[1741450025241,0.87694442,86628.0,86627.0,6e-07]
[1741450031160,0.87690442,86628.0,86627.0,6e-07]
[1741450034290,0.242432,86622.0,86621.0,0.001]
[1741450035554,0.603633,86622.0,86621.0,0.001]
[1741450035725,1.340831,86622.0,86621.0,0.001]
[1741450035922,1.348944,86622.0,86621.0,0.001]
[1741450036193,1.348944,86622.0,86612.0,0.0806398]
[1741450036194,0.011544,86621.0,86612.0,0.0806398]
[1741450036399,1.405954,86621.0,86612.0,0.0806398]
[1741450036617,1.371203,86621.0,86612.0,0.0806398]
[1741450037214,0.635068,86621.0,86612.0,0.0806398]
[1741450037788,0.318316,86621.0,86612.0,0.0806398]
[1741450038574,0.325316,86621.0,86612.0,0.0806398]
[1741450038746,0.330316,86621.0,86612.0,0.0806398]
[1741450039180,0.238677,86621.0,86612.0,0.0806398]
[1741450039381,0.157308,86621.0,86612.0,0.0806398]
[1741450039602,0.170083,86621.0,86612.0,0.0806398]
[1741450039811,0.023544,86621.0,86612.0,0.0806398]
[1741450040197,0.03849252,86621.0,86612.0,0.0806398]
[1741450041190,0.16943152,86621.0,86612.0,0.0806398]
[1741450041538,0.03849252,86621.0,86612.0,0.0806398]
[1741450041742,0.03849252,86621.0,86620.0,0.1351]
[1741450042304,0.15001252,86621.0,86620.0,0.1351]
[1741450046371,0.15001252,86621.0,86620.0,0.005]
[1741450046614,1.06281352,86621.0,86620.0,0.005]
[1741450046991,1.34133752,86621.0,86620.0,0.005]
[1741450047610,0.242457,86613.0,86612.0,0.0003398]
[1741450049110,0.242457,86613.0,86612.0,0.00072553]
[1741450050279,0.246457,86613.0,86612.0,0.00072553]
[1741450052660,0.26970263,86613.0,86612.0,0.00072553]
[1741450059674,0.27570263,86613.0,86612.0,0.00072553]
[1741450063954,0.27570263,86613.0,86612.0,0.07602553]
[1741450080924,0.252457,86613.0,86612.0,0.07602553]
[1741450089066,0.252457,86613.0,86612.0,0.07609453]
[1741450099388,0.252457,86613.0,86612.0,0.00079453]
[1741450102354,1.0318,86613.0,86612.0,0.00079453]
[1741450102551,0.820717,86613.0,86612.0,0.00079453]
[1741450102754,0.792956,86613.0,86612.0,0.00079453]
[1741450102983,0.011545,86611.0,86610.0,0.0130125]
[1741450103189,0.636093,86611.0,86610.0,0.01312804]
[1741450103394,0.936093,86611.0,86610.0,0.01312804]
[1741450104466,0.744425,86611.0,86610.0,0.01312804]
[1741450105535,0.788848,86611.0,86610.0,0.01312804]
[1741450105871,0.681548,86611.0,86610.0,0.01312804]
[1741450107034,0.543495,86611.0,86610.0,0.01312804]
[1741450107371,0.549495,86611.0,86610.0,0.01312804]
[1741450108180,0.549495,86611.0,86610.0,0.01329794]
[1741450109532,0.780412,86611.0,86610.0,0.01329794]
[1741450113141,1.180412,86611.0,86610.0,0.01329794]
[1741450113388,1.180412,86611.0,86610.0,0.00829794]
[1741450116206,3.690875,86611.0,86610.0,0.00829794]
[1741450117479,4.017875,86611.0,86610.0,0.00829794]
[1741450117728,3.71719311,86611.0,86610.0,0.00829794]
[1741450118320,3.72873811,86611.0,86610.0,0.00829794]
[1741450118949,3.28682111,86611.0,86610.0,0.00829794]
[1741450119450,3.506875,86611.0,86610.0,0.00829794]
[1741450119692,3.806875,86611.0,86610.0,0.00829794]
[1741450119934,4.006875,86611.0,86610.0,0.00829794]
[1741450121403,4.0072148,86611.0,86610.0,0.00829794]
[1741450122215,3.4807988,86611.0,86610.0,0.00829794]
[1741450122470,3.3774148,86611.0,86610.0,0.00829794]
[1741450123195,1.7577528,86611.0,86610.0,0.00829794]
[1741450123416,1.3962138,86611.0,86610.0,0.00829794]
[1741450123647,1.3516278,86611.0,86610.0,0.00829794]
[1741450125658,3.1426278,86611.0,86610.0,0.00829794]
[1741450125859,3.1426278,86611.0,86601.0,0.001]
[1741450125860,0.942488,86602.0,86601.0,0.001]
[1741450126034,2.553928,86602.0,86601.0,0.001]
[1741450126236,2.506466,86602.0,86601.0,0.001]
[1741450126661,2.105198,86602.0,86601.0,0.001]
[1741450126955,1.935843,86602.0,86601.0,0.001]
[1741450127162,1.878481,86602.0,86601.0,0.001]
[1741450127365,1.556497,86602.0,86601.0,0.001]
[1741450127569,1.156497,86602.0,86601.0,0.001]
[1741450128311,0.990753,86602.0,86601.0,0.001]
[1741450128997,0.996753,86602.0,86601.0,0.002]
[1741450129411,0.996753,86602.0,86590.0,0.0802]
[1741450129412,0.242516,86592.0,86590.0,0.0802]
[1741450129629,0.353956,86592.0,86590.0,0.0802]
[1741450131453,0.36267509,86592.0,86590.0,0.0802]
[1741450132074,0.36467509,86592.0,86590.0,0.0802]
[1741450132800,0.36567509,86592.0,86590.0,0.0802]
[1741450132997,0.36567509,86592.0,86586.0,0.0783]
[1741450133505,0.36567509,86592.0,86591.0,0.0005699]
[1741450133960,0.81085509,86592.0,86591.0,0.0005699]
[1741450135385,1.10885509,86592.0,86591.0,0.0005699]
[1741450135631,1.10785509,86592.0,86591.0,0.0005699]
[1741450136043,1.11385509,86592.0,86591.0,0.0005699]
[1741450136534,1.11085509,86592.0,86591.0,0.0005699]
[1741450136939,1.11385509,86592.0,86591.0,0.0005699]
[1741450138389,1.11085509,86592.0,86591.0,0.0005699]
[1741450138775,1.11485509,86592.0,86591.0,0.0005699]
[1741450139813,1.10785509,86592.0,86591.0,0.0005699]
[1741450140229,1.11985509,86592.0,86591.0,0.0005699]
[1741450140979,1.44685509,86592.0,86591.0,0.0005699]
[1741450141531,1.44185509,86592.0,86591.0,0.0005699]
[1741450143163,1.33910709,86592.0,86591.0,0.0005699]
[1741450143807,1.32446809,86592.0,86591.0,0.0005699]
[1741450146660,0.242533,86586.0,86585.0,0.005]
[1741450146871,0.641528,86586.0,86585.0,0.005]
[1741450147080,0.750428,86586.0,86585.0,0.005]
[1741450147278,0.454525,86586.0,86585.0,0.005]
[1741450148407,0.415289,86586.0,86585.0,0.005]
[1741450148579,0.242533,86586.0,86585.0,0.005]
[1741450149047,0.246533,86586.0,86585.0,0.005]
[1741450149250,0.410612,86586.0,86585.0,0.005]
[1741450149447,0.004,86586.0,86585.0,0.1348]
[1741450149751,0.015549,86586.0,86585.0,0.1348]
[1741450150175,0.015549,86586.0,86585.0,0.1481848]
[1741450150833,0.021549,86586.0,86585.0,0.1481848]
[1741450151192,0.017549,86586.0,86585.0,0.1481848]
[1741450151407,0.011549,86586.0,86585.0,0.1481848]
[1741450151603,0.015549,86586.0,86585.0,0.1481848]
[1741450151773,0.017549,86586.0,86585.0,0.1481848]
[1741450151973,0.017549,86586.0,86585.0,0.1348]
[1741450151974,0.013549,86586.0,86585.0,0.1348]
[1741450152183,0.014549,86586.0,86585.0,0.1348]
[1741450157380,0.014549,86586.0,86585.0,0.1349699]
[1741450163224,0.245533,86586.0,86585.0,0.1349699]
[1741450165548,0.245533,86586.0,86585.0,0.0051699]
[1741450165759,0.702525,86586.0,86585.0,0.0051699]
[1741450165914,0.652575,86586.0,86585.0,0.0051699]
[1741450166078,0.576485,86586.0,86585.0,0.0051699]
[1741450166281,0.245533,86586.0,86585.0,0.0051699]
[1741450166591,0.244533,86586.0,86585.0,0.0051699]
[1741450167164,0.246533,86586.0,86585.0,0.0051699]
[1741450167344,0.246533,86586.0,86578.0,0.0795]
[1741450167345,0.242543,86582.0,86578.0,0.0795]
[1741450168601,0.242543,86582.0,86581.0,0.00111579]
[1741450171483,0.245543,86582.0,86581.0,0.00111579]
[1741450173024,0.25913909,86582.0,86581.0,0.00111579]
[1741450175086,0.02814509,86582.0,86581.0,0.00111579]
[1741450175702,0.25913909,86582.0,86581.0,0.00111579]
[1741450176056,0.26313909,86582.0,86581.0,0.00111579]
[1741450178969,0.25913909,86582.0,86581.0,0.00111579]
[1741450179321,0.26113909,86582.0,86581.0,0.00111579]
[1741450179925,0.26013909,86582.0,86581.0,0.00111579]
[1741450180130,0.25613909,86582.0,86581.0,0.00111579]
[1741450180312,0.26013909,86582.0,86581.0,0.00111579]
[1741450180732,0.26313909,86582.0,86581.0,0.00111579]
[1741450181639,0.26313909,86582.0,86581.0,0.00128569]
[1741450184803,0.25913909,86582.0,86581.0,0.00128569]
[1741450185835,0.25613909,86582.0,86581.0,0.00128569]
[1741450186367,0.230989,86584.0,86581.0,0.00128569]
[1741450186750,0.005,86582.0,86581.0,0.00128569]
[1741450186956,0.03039847,86582.0,86581.0,0.00128569]
[1741450187338,0.25639247,86582.0,86581.0,0.00128569]
[1741450187743,0.44097747,86582.0,86581.0,0.00128569]
[1741450188139,0.43697747,86582.0,86581.0,0.00128569]
[1741450188552,0.44097747,86582.0,86581.0,0.00128569]
[1741450191093,0.44597747,86582.0,86581.0,0.00128569]
[1741450192260,0.26539247,86582.0,86581.0,0.00128569]
[1741450192886,0.80116147,86582.0,86581.0,0.00128569]
[1741450194926,0.75935247,86582.0,86581.0,0.00128569]
[1741450197012,1.05935247,86582.0,86581.0,0.00128569]
[1741450199108,1.05435247,86582.0,86581.0,0.00128569]
[1741450199851,1.03590347,86582.0,86581.0,0.00128569]
[1741450200415,1.04290347,86582.0,86581.0,0.00128569]
[1741450200773,0.81648147,86582.0,86581.0,0.00128569]
[1741450201093,0.82148147,86582.0,86581.0,0.00128569]
[1741450204856,0.56839247,86582.0,86581.0,0.00128569]
[1741450205059,0.56839247,86582.0,86581.0,0.04988569]
[1741450205457,0.70772247,86582.0,86581.0,0.04988569]
[1741450209596,0.75524547,86582.0,86581.0,0.04988569]
[1741450211597,0.75524547,86582.0,86581.0,0.00128569]
[1741450213311,0.242558,86577.0,86576.0,0.0824]
[1741450214856,0.246558,86577.0,86576.0,0.0824]
[1741450215265,0.251558,86577.0,86576.0,0.0824]
[1741450215673,0.02055,86577.0,86576.0,0.0824]
[1741450215873,0.009,86577.0,86576.0,0.14187668]
[1741450217994,0.009,86577.0,86576.0,0.14204658]
[1741450219668,0.004,86577.0,86576.0,0.14204658]
[1741450220072,0.008,86577.0,86576.0,0.14204658]
[1741450221747,0.004,86577.0,86576.0,0.14204658]
[1741450221967,0.01555,86577.0,86576.0,0.14204658]
[1741450222127,0.01855,86577.0,86576.0,0.14204658]
[1741450225495,0.01155,86579.0,86577.0,0.0794]
[1741450225691,0.01155,86579.0,86578.0,0.01415197]
[1741450225998,0.01155,86579.0,86578.0,0.09355197]
[1741450227039,0.01955,86579.0,86578.0,0.0794]
[1741450227817,0.01455,86579.0,86578.0,0.0794]
[1741450228313,0.01155,86577.0,86576.0,0.0454699]
[1741450230317,0.01355,86577.0,86576.0,0.0454699]
[1741450230534,0.01355,86577.0,86576.0,0.0001699]
[1741450230942,0.01655,86577.0,86576.0,0.0001699]
[1741450233898,0.242572,86572.0,86571.0,0.0004]
[1741450234549,0.903148,86572.0,86571.0,0.0004]
[1741450234759,0.818171,86572.0,86571.0,0.0004]
[1741450234911,0.84193575,86572.0,86571.0,0.0004]
[1741450235106,0.79033475,86572.0,86571.0,0.0004]
[1741450235459,0.71442275,86572.0,86571.0,0.0004]
[1741450236167,0.64134675,86572.0,86571.0,0.0004]
[1741450237160,0.64234675,86572.0,86571.0,0.0004]
[1741450237331,0.58003775,86572.0,86571.0,0.0004]